fUST/lending_fUST_20260114
["ID","MTS","AMOUNT","RATE_DAILY","PERIOD"]
[401836807,1768384253712,-500.0,0.00025754,2]
[401836809,1768384253721,-2000.07602471,0.00025768,2]
[401836811,1768384253732,-151.0,0.00025769,7]
[401836813,1768384253741,-151.0,0.00025769,7]
[401836815,1768384253751,-151.0,0.00025769,7]
[401836817,1768384253761,-151.0,0.00025769,7]
[401836818,1768384253770,-151.0,0.00025769,7]
[401836819,1768384253782,-151.0,0.00025769,7]
[401836820,1768384253792,-151.0,0.00025769,7]
[401836821,1768384253802,-259.92206125,0.00025769,7]
[401836822,1768384253811,-151.0,0.00025769,7]
[401836823,1768384253820,-221.765393,0.00025769,7]
[401836824,1768384253830,-1174.88548648,0.00025805,24]
[401836825,1768384253839,-756.29,0.00025805,30]
[401836826,1768384253849,-1000.0,0.00025825,7]
[401836827,1768384253859,-522.88356834,0.00025885,7]
[401836828,1768384253869,-500.0,0.00025891,2]
[401836829,1768384253879,-1700.0,0.00025904,7]
[401836830,1768384253889,-2000.0,0.0002595,7]
[401836831,1768384253899,-1939.31407633,0.00025971,2]
[401836832,1768384253909,-200.0,0.00026,30]
[401836833,1768384253918,-2049.06,0.00026,7]
[401836834,1768384253927,-1894.88,0.00026,2]
[401836835,1768384253936,-1020.0,0.00026,2]
[401836836,1768384253946,-229.37,0.00026,2]
[401836837,1768384253956,-800.0,0.00026016,7]
[401836838,1768384253966,-4840.44,0.00026027,2]
[401836839,1768384253976,-500.0,0.00026028,2]
[401836840,1768384253986,-1700.0,0.00026032,7]
[401836841,1768384253995,-160.0,0.00026084,4]
[401836842,1768384254005,-500.0,0.00026105,7]
[401836843,1768384254015,-500.0,0.00026165,2]
[401836844,1768384254025,-800.0,0.00026191,7]
[401836845,1768384254034,-800.0,0.00026211,7]
[401836846,1768384254043,-171.0,0.00026247,19]
[401836847,1768384254053,-1000.0,0.00026273,7]
[401836848,1768384254063,-1700.0,0.00026273,7]
[401836849,1768384254072,-40340.44,0.000263,2]
[401836850,1768384254082,-450.0,0.00026301,2]
[401836851,1768384254091,-1450.0,0.00026301,2]
[401836852,1768384254101,-500.0,0.00026302,2]
[401836853,1768384254110,-1700.0,0.00026313,7]
[401836854,1768384254121,-1700.0,0.00026346,7]
[401836855,1768384254130,-1134.44,0.00026419,30]
[401836856,1768384254141,-500.0,0.00026439,2]
[401836857,1768384254151,-728.0,0.00026455,3]
[401836858,1768384254160,-728.0,0.00026455,3]
[401836859,1768384254169,-800.0,0.0002646,7]
[401836860,1768384254179,-160.0,0.00026461,5]
[401836861,1768384254189,-2000.0,0.00026498,7]
[401836862,1768384254198,-1894.88,0.000265,2]
[401836863,1768384254207,-229.37,0.000265,2]
[401836864,1768384254217,-2000.0,0.00026507,7]
[401836865,1768384254226,-2000.0,0.00026516,7]
[401836866,1768384254236,-2000.0,0.00026524,7]
[401836867,1768384254245,-499.3,0.00026528,7]
[401836868,1768384254255,-2000.0,0.00026533,7]
[401836869,1768384254264,-2000.0,0.00026542,7]
[401836870,1768384254274,-2000.0,0.00026551,7]
[401836871,1768384254283,-1700.0,0.00026551,7]
[401836872,1768384254293,-2000.0,0.0002656,7]
[401836873,1768384254303,-800.0,0.00026566,7]
[401836874,1768384254313,-2000.0,0.00026568,7]
[401836875,1768384254322,-800.0,0.00026571,7]
[401836876,1768384254332,-500.0,0.00026576,2]
[401836877,1768384254341,-2000.0,0.00026577,7]
[401836878,1768384254351,-2000.0,0.00026586,7]
[401836879,1768384254360,-2000.0,0.00026595,7]
[401836880,1768384254370,-2000.0,0.00026604,7]
[401836881,1768384254379,-2000.0,0.00026612,7]
[401836882,1768384254389,-2000.0,0.00026621,7]
[401836883,1768384254398,-2000.0,0.0002663,7]
[401836884,1768384254408,-2000.0,0.00026639,7]
[401836885,1768384254417,-2000.0,0.00026648,7]
[401836886,1768384254426,-971.7,0.00026655,2]
[401836887,1768384254435,-2000.0,0.00026656,7]
[401836888,1768384254445,-1700.0,0.00026663,7]
[401836889,1768384254454,-2000.0,0.00026665,7]
[401836891,1768384254464,-2000.0,0.00026674,7]
[401836892,1768384254473,-2000.0,0.00026683,7]
[401836894,1768384254483,-3029.1745462,0.00026687,2]
[401836895,1768384254494,-2000.0,0.00026692,7]
[401836896,1768384254503,-2000.0,0.000267,7]
[401836898,1768384254513,-2000.0,0.00026709,7]
[401836899,1768384254522,-500.0,0.00026713,2]
[401836901,1768384254532,-2000.0,0.00026718,7]
[401836903,1768384254541,-2000.0,0.00026727,7]
[401836905,1768384254551,-2000.0,0.00026736,7]
[401836907,1768384254560,-633.419635,0.00026744,7]
[401836909,1768384254569,-633.419635,0.00026744,7]
[401836911,1768384254579,-151.0,0.00026744,7]
[401836913,1768384254589,-633.419635,0.00026744,7]
[401836915,1768384254598,-633.419635,0.00026744,7]
[401836917,1768384254607,-424.867584,0.00026744,7]
[401836919,1768384254616,-424.867584,0.00026744,7]
[401836921,1768384254625,-424.867584,0.00026744,7]
[401836923,1768384254635,-169.388304,0.00026744,7]
[401836925,1768384254644,-424.867584,0.00026744,7]
[401836927,1768384254654,-151.0,0.00026744,7]
[401836929,1768384254662,-151.0,0.00026744,7]
[401836930,1768384254671,-227.437478,0.00026744,7]
[401836933,1768384254681,-151.0,0.00026744,7]
[401836934,1768384254691,-151.0,0.00026744,7]
[401836936,1768384254700,-269.531523,0.00026744,7]
[401836938,1768384254711,-2000.0,0.00026744,7]
[401836940,1768384254720,-2000.0,0.00026753,7]
[401836942,1768384254730,-2000.0,0.00026762,7]
[401836944,1768384254739,-1174.88548648,0.00026767,25]
[401836946,1768384254749,-2000.0,0.00026771,7]
[401836948,1768384254758,-2000.0,0.0002678,7]
[401836950,1768384254767,-2000.0,0.00026788,7]
[401836952,1768384254779,-171.0,0.00026795,22]
[401836954,1768384254788,-2000.0,0.00026797,7]
[401836956,1768384254797,-2000.0,0.00026806,7]
[401836958,1768384254806,-2000.0,0.00026815,7]
[401836960,1768384254816,-500.0,0.00026815,7]
[401836962,1768384254825,-2000.0,0.00026824,7]
[401836964,1768384254834,-2000.0,0.00026832,7]
[401836966,1768384254843,-160.0,0.00026839,6]
[401836967,1768384254853,-2000.0,0.00026841,7]
[401836969,1768384254862,-1700.0,0.00026847,7]
[401836971,1768384254873,-550.0,0.00026849,2]
[401836973,1768384254882,-1550.0,0.00026849,2]
[401836975,1768384254892,-500.0,0.0002685,2]
[401836977,1768384254902,-2000.0,0.0002685,7]
[401836979,1768384254911,-5000.0,0.00026852,2]
[401836981,1768384254921,-791.34915639,0.00026889,7]
[401836983,1768384254931,-800.0,0.00026891,2]
[401836985,1768384254940,-1000.0,0.00026928,7]
[401836987,1768384254950,-500.0,0.00026987,2]
[401836989,1768384254959,-500.0,0.00026987,2]
[401836991,1768384254969,-500.0,0.00026987,2]
[401836993,1768384254979,-500.0,0.00026987,2]
[401836995,1768384254987,-500.0,0.00026987,2]
[401837005,1768384255081,-500.0,0.00026987,2]
[401837007,1768384255091,-500.0,0.00026987,2]
[401837009,1768384255103,-500.0,0.00026987,2]
[401837010,1768384255115,-500.0,0.00026987,2]
[401837012,1768384255125,-500.0,0.00026987,2]
[401837014,1768384255134,-500.0,0.00026987,2]
[401837016,1768384255143,-500.0,0.00026987,2]
[401837019,1768384255154,-500.0,0.00026987,2]
[401837020,1768384255164,-151.0,0.00027,15]
[401837022,1768384255174,-5150.59,0.00027,14]
[401837024,1768384255183,-316.46,0.00027,7]
[401837026,1768384255193,-316.42,0.00027,7]
[401837028,1768384255204,-1020.0,0.00027,2]
[401837030,1768384255213,-2000.0,0.00027031,7]
[401837032,1768384255223,-1512.58,0.00027034,30]
[401837034,1768384255233,-1894.88,0.000271,2]
[401837036,1768384255242,-229.37,0.000271,2]
[401837038,1768384255251,-3029.1745462,0.00027107,2]
[401837040,1768384255260,-500.0,0.00027124,2]
[401837042,1768384255270,-500.0,0.00027124,2]
[401837044,1768384255279,-500.0,0.00027124,2]
[401837047,1768384255298,-500.0,0.00027124,2]
[401837049,1768384255310,-500.0,0.00027124,2]
[401837051,1768384255320,-500.0,0.00027124,2]
[401837053,1768384255331,-500.0,0.00027124,2]
[401837055,1768384255342,-500.0,0.00027124,2]
[401837057,1768384255352,-500.0,0.00027124,2]
[401837059,1768384255362,-500.0,0.00027124,2]
[401837061,1768384255372,-500.0,0.00027124,2]
[401837063,1768384255381,-500.0,0.00027124,2]
[401837065,1768384255392,-500.0,0.00027124,2]
[401837067,1768384255402,-283.83301289,0.00027124,2]
[401837069,1768384255412,-2947.20552054,0.00027136,7]
[401837072,1768384255423,-3029.1745462,0.00027136,2]
[401837074,1768384255433,-293.85068442,0.00027179,7]
[401837075,1768384255442,-2049.06,0.000272,7]
[401837076,1768384255452,-160.0,0.00027216,7]
[401837077,1768384255461,-1000.0,0.00027246,7]
[401837078,1768384255470,-355.01455049,0.00027261,2]
[401837079,1768384255479,-500.88218581,0.00027261,2]
[401837080,1768384255489,-500.0,0.00027261,2]
[401837081,1768384255498,-500.0,0.00027261,2]
[401837082,1768384255507,-500.0,0.00027261,2]
[401837083,1768384255517,-500.0,0.00027261,2]
[401837084,1768384255526,-500.0,0.00027261,2]
[401837085,1768384255535,-500.0,0.00027261,2]
[401837086,1768384255544,-500.0,0.00027261,2]
[401837088,1768384255554,-500.0,0.00027261,2]
[401837090,1768384255563,-500.0,0.00027261,2]
[401837092,1768384255573,-240.44633049,0.00027261,2]
[401837094,1768384255582,-500.0,0.00027261,2]
[401837096,1768384255593,-500.0,0.00027273,7]
[401837098,1768384255602,-1000.0,0.0002728,7]
[401837100,1768384255613,-800.0,0.0002728,7]
[401837103,1768384255624,-1296.0967193,0.00027281,7]
[401837105,1768384255635,-591.12357233,0.0002733,7]
[401837106,1768384255646,-172.0,0.00027342,24]
[401837109,1768384255657,-500.0,0.00027361,7]
[401837111,1768384255667,-1594.41498494,0.00027383,7]
[401837113,1768384255677,-378.48221474,0.00027397,3]
[401837115,1768384255688,-650.0,0.00027397,5]
[401837117,1768384255698,-300.0,0.00027397,2]
[401837119,1768384255709,-300.0,0.00027397,2]
[401837121,1768384255720,-300.0,0.00027397,2]
[401837123,1768384255730,-300.0,0.00027397,2]
[401837125,1768384255739,-300.0,0.00027397,2]
[401837127,1768384255751,-300.0,0.00027397,2]
[401837129,1768384255760,-300.0,0.00027397,2]
[401837132,1768384255770,-300.0,0.00027397,2]
[401837134,1768384255781,-300.0,0.00027397,2]
[401837136,1768384255791,-151.0,0.00027397,7]
[401837138,1768384255801,-295.309906,0.00027397,7]
[401837140,1768384255811,-156.87039,0.00027397,7]
[401837141,1768384255820,-500.0,0.00027397,5]
[401837143,1768384255829,-157.45506808,0.00027397,5]
[401837144,1768384255839,-515.68473116,0.00027397,5]
[401837146,1768384255849,-1650.0,0.00027397,5]
[401837149,1768384255858,-366.99002628,0.00027398,2]
[401837151,1768384255868,-500.0,0.00027398,2]
[401837153,1768384255877,-450.0,0.00027398,2]
[401837155,1768384255887,-500.0,0.00027398,2]
[401837157,1768384255896,-500.0,0.00027398,2]
[401837159,1768384255905,-407.49285757,0.00027398,2]
[401837161,1768384255915,-500.0,0.00027398,2]
[401837163,1768384255924,-500.0,0.00027398,2]
[401837165,1768384255934,-629.0,0.00027458,2]
[401837167,1768384255943,-2147.0,0.00027458,2]
[401837169,1768384255952,-1367.0,0.00027458,2]
[401837171,1768384255962,-3029.1745462,0.00027471,2]
[401837173,1768384255971,-450.0,0.00027535,2]
[401837175,1768384255979,-233.98664865,0.00027535,2]
[401837177,1768384255989,-500.0,0.00027535,2]
[401837179,1768384255998,-500.0,0.00027535,2]
[401837181,1768384256007,-300.0,0.00027535,2]
[401837183,1768384256017,-160.0,0.00027594,8]
[401837185,1768384256026,-1894.88,0.000276,2]
[401837187,1768384256035,-229.37,0.000276,2]
[401837189,1768384256044,-1890.73,0.00027648,30]
[401837191,1768384256053,-4840.44,0.00027671,4]
[401837193,1768384256062,-500.0,0.00027672,2]
[401837195,1768384256071,-622.17092249,0.00027672,2]
[401837197,1768384256081,-3029.1745462,0.00027677,2]
[401837199,1768384256090,-40340.44,0.000277,2]
[401837201,1768384256099,-839.619726,0.000277,7]
[401837203,1768384256108,-839.619726,0.000277,7]
[401837205,1768384256119,-839.619726,0.000277,7]
[401837207,1768384256128,-839.619726,0.000277,7]
[401837209,1768384256138,-275.55471384,0.000277,7]
[401837210,1768384256147,-151.0,0.000277,7]
[401837212,1768384256156,-151.0,0.000277,7]
[401837213,1768384256166,-151.0,0.000277,7]
[401837215,1768384256175,-151.0,0.000277,7]
[401837217,1768384256184,-151.0,0.000277,7]
[401837218,1768384256193,-151.0,0.000277,7]
[401837219,1768384256203,-151.0,0.000277,7]
[401837221,1768384256212,-151.0,0.000277,7]
[401837222,1768384256222,-230.012904,0.000277,7]
[401837224,1768384256231,-151.0,0.000277,7]
[401837226,1768384256241,-151.0,0.000277,7]
[401837228,1768384256251,-151.0,0.000277,7]
[401837230,1768384256260,-174.038823,0.000277,7]
[401837232,1768384256269,-174.038823,0.000277,7]
[401837233,1768384256279,-174.038823,0.000277,7]
[401837234,1768384256288,-174.038823,0.000277,7]
[401837235,1768384256298,-406.316369,0.000277,7]
[401837236,1768384256307,-406.316369,0.000277,7]
[401837237,1768384256316,-406.316369,0.000277,7]
[401837238,1768384256326,-151.0,0.000277,7]
[401837239,1768384256336,-216.013567,0.000277,7]
[401837240,1768384256346,-406.316369,0.000277,7]
[401837241,1768384256356,-151.0,0.000277,7]
[401837242,1768384256365,-216.013567,0.000277,7]
[401837243,1768384256375,-151.0,0.000277,7]
[401837244,1768384256385,-216.013567,0.000277,7]
[401837245,1768384256394,-151.0,0.000277,7]
[401837246,1768384256404,-216.013567,0.000277,7]
[401837247,1768384256413,-151.0,0.000277,7]
[401837248,1768384256423,-170.441606,0.000277,7]
[401837249,1768384256432,-1174.88548648,0.0002773,27]
[401837250,1768384256442,-500.0,0.00027809,2]
[401837251,1768384256452,-205.0,0.0002789,26]
[401837252,1768384256461,-728.0,0.0002792,3]
[401837253,1768384256471,-5000.0,0.00027935,2]
[401837254,1768384256480,-1000.0,0.00027945,5]
[401837255,1768384256489,-750.0,0.00027945,5]
[401837256,1768384256499,-250.0,0.00027945,5]
[401837257,1768384256508,-1750.0,0.00027945,5]
[401837258,1768384256518,-250.0,0.00027945,5]
[401837259,1768384256528,-2072.54939455,0.00027971,2]
[401837260,1768384256537,-160.0,0.00027971,9]
[401837261,1768384256546,-1020.0,0.00028,2]
[401837262,1768384256556,-728.0,0.00028065,3]
[401837263,1768384256566,-1894.88,0.000281,2]
[401837264,1768384256575,-229.37,0.000281,2]
[401837265,1768384256585,-2000.0,0.00028112,7]
[401837266,1768384256595,-971.7,0.00028115,5]
[401837267,1768384256611,-3029.1745462,0.00028132,2]
[401837268,1768384256623,-3029.1745462,0.00028253,2]
[401837269,1768384256633,-2268.87,0.00028263,30]
[401837270,1768384256643,-800.0,0.00028278,2]
[401837271,1768384256653,-160.0,0.00028349,10]
[401837272,1768384256662,-800.0,0.00028395,2]
[401837273,1768384256672,-192.0,0.00028438,29]
[401837274,1768384256681,-728.0,0.0002848,3]
[401837275,1768384256690,-850.0,0.00028493,5]
[401837276,1768384256699,-1349.80836073,0.00028493,5]
[401837277,1768384256711,-350.0,0.00028493,5]
[401837278,1768384256721,-1850.0,0.00028493,5]
[401837279,1768384256730,-350.0,0.00028493,5]
[401837280,1768384256741,-151.0,0.000285,16]
[401837281,1768384256751,-1894.88,0.000286,2]
[401837282,1768384256760,-229.37,0.000286,2]
[401837283,1768384256770,-21537.72825152,0.00028677,2]
[401837284,1768384256780,-1174.88548648,0.00028693,28]
[401837285,1768384256789,-160.0,0.00028726,11]
[401837286,1768384256799,-3029.1745462,0.00028741,2]
[401837287,1768384256809,-810.371278,0.00028767,60]
[401837288,1768384256818,-316.42,0.000288,7]
[401837289,1768384256828,-2647.02,0.00028877,30]
[401837290,1768384256838,-728.0,0.0002888,3]
[401837291,1768384256938,-2049.06,0.000289,7]
[401837292,1768384256959,-5150.59,0.000289,14]
[401837293,1768384256968,-316.46,0.000289,7]
[401837294,1768384256978,-180.0,0.00028986,32]
[401837295,1768384256988,-1020.0,0.00029,2]
[401837296,1768384256997,-1041.66666667,0.00029,30]
[401837297,1768384257008,-5000.0,0.00029018,2]
[401837298,1768384257017,-35131.09800633,0.0002902,2]
[401837299,1768384257027,-3029.1745462,0.0002903,2]
[401837300,1768384257036,-950.0,0.00029041,5]
[401837301,1768384257046,-450.0,0.00029041,5]
[401837302,1768384257055,-1006.71612592,0.00029041,5]
[401837303,1768384257065,-450.0,0.00029041,5]
[401837304,1768384257074,-1894.88,0.000291,2]
[401837305,1768384257083,-229.37,0.000291,2]
[401837306,1768384257093,-160.0,0.00029104,12]
[401837307,1768384257103,-6706.63991012,0.00029176,2]
[401837308,1768384257112,-2000.0,0.00029192,7]
[401837309,1768384257121,-3029.1745462,0.00029218,2]
[401837310,1768384257131,-4840.44,0.00029315,6]
[401837311,1768384257140,-800.0,0.00029352,2]
[401837312,1768384257150,-3029.1745462,0.00029468,2]
[401837313,1768384257160,-160.0,0.00029481,13]
[401837314,1768384257169,-3025.16,0.00029491,30]
[401837315,1768384257178,-223.38361447,0.00029534,30]
[401837316,1768384257188,-168.0,0.00029534,35]
[401837317,1768384257197,-971.7,0.00029575,7]
[401837318,1768384257206,-167.12486556,0.00029584,5]
[401837319,1768384257215,-1050.0,0.00029589,5]
[401837320,1768384257224,-550.0,0.00029589,5]
[401837321,1768384257234,-550.0,0.00029589,5]
[401837322,1768384257243,-3029.1745462,0.00029594,2]
[401837323,1768384257251,-197.38359071,0.00029595,4]
[401837324,1768384257261,-1894.88,0.000296,2]
[401837325,1768384257272,-229.37,0.000296,2]
[401837326,1768384257289,-800.0,0.00029607,2]
[401837327,1768384257299,-1174.88548648,0.00029655,30]
[401837328,1768384257308,-40340.44,0.000297,2]
[401837329,1768384257318,-151.0,0.000297,7]
[401837330,1768384257327,-163.463878,0.000297,7]
[401837331,1768384257337,-151.0,0.000297,7]
[401837332,1768384257346,-151.0,0.000297,7]
[401837333,1768384257355,-151.0,0.000297,7]
[401837334,1768384257364,-160.0,0.00029859,14]
[401837335,1768384257373,-1127.02,0.000299,4]
[401837336,1768384257383,-434.09,0.000299,4]
[401837337,1768384257392,-190.493,0.00029941,24]
[401837338,1768384257401,-178.22607433,0.00029941,24]
[401837339,1768384257412,-2205.78471278,0.00029971,2]
[401837340,1768384257422,-151.0,0.0003,17]
[401837341,1768384257432,-161.8907008,0.0003,7]
[401837342,1768384257443,-1041.66666667,0.0003,7]
[401837343,1768384257455,-154.81359138,0.0003,5]
[401837344,1768384257464,-1020.0,0.0003,7]
[401837345,1768384257474,-40025.8089283,0.00030003,2]
[401837346,1768384257483,-3029.1745462,0.00030062,2]
[401837347,1768384257493,-304.0,0.00030082,38]
[401837348,1768384257504,-1894.88,0.000301,2]
[401837349,1768384257515,-229.37,0.000301,2]
[401837350,1768384257525,-5000.0,0.00030102,2]
[401837351,1768384257535,-3403.31,0.00030106,30]
[401837352,1768384257545,-38000.0,0.00030118,10]
[401837353,1768384257555,-38000.0,0.00030127,10]
[401837354,1768384257564,-151.0,0.00030136,60]
[401837355,1768384257573,-151.0,0.00030136,60]
[401837356,1768384257583,-151.0,0.00030136,60]
[401837357,1768384257592,-151.0,0.00030136,60]
[401837358,1768384257601,-151.0,0.00030136,60]
[401837359,1768384257611,-151.0,0.00030136,60]
[401837360,1768384257623,-151.0,0.00030136,60]
[401837361,1768384257632,-151.0,0.00030136,60]
[401837362,1768384257642,-151.0,0.00030136,60]
[401837363,1768384257652,-151.0,0.00030136,60]
[401837364,1768384257661,-151.0,0.00030136,60]
[401837365,1768384257671,-151.0,0.00030136,60]
[401837366,1768384257680,-151.0,0.00030136,60]
[401837367,1768384257689,-151.0,0.00030136,60]
[401837368,1768384257698,-151.0,0.00030136,60]
[401837369,1768384257708,-500.0,0.00030136,15]
[401837370,1768384257719,-151.0,0.00030136,60]
[401837371,1768384257728,-151.0,0.00030136,60]
[401837372,1768384257738,-1000.0,0.00030136,2]
[401837373,1768384257747,-1000.0,0.00030136,2]
[401837374,1768384257757,-1000.0,0.00030136,2]
[401837375,1768384257766,-1000.0,0.00030136,2]
[401837376,1768384257775,-1000.0,0.00030136,2]
[401837377,1768384257789,-1000.0,0.00030136,2]
[401837378,1768384257799,-1000.0,0.00030136,2]
[401837379,1768384257808,-1000.0,0.00030136,2]
[401837380,1768384257817,-1000.0,0.00030136,2]
[401837381,1768384257827,-1000.0,0.00030136,2]
[401837382,1768384257836,-1000.0,0.00030136,2]
[401837383,1768384257846,-1000.0,0.00030136,2]
[401837384,1768384257855,-1000.0,0.00030136,2]
[401837385,1768384257865,-951.08890803,0.00030136,2]
[401837386,1768384257874,-500.0,0.00030136,8]
[401837387,1768384257883,-500.0,0.00030136,8]
[401837388,1768384257893,-500.0,0.00030136,8]
[401837389,1768384257903,-500.0,0.00030136,8]
[401837390,1768384257912,-500.0,0.00030136,8]
[401837391,1768384257921,-500.0,0.00030136,8]
[401837392,1768384257931,-500.0,0.00030136,8]
[401837393,1768384257940,-500.0,0.00030136,8]
[401837394,1768384257949,-500.0,0.00030136,8]
[401837395,1768384257958,-500.0,0.00030136,8]
[401837396,1768384257967,-500.0,0.00030136,8]
[401837397,1768384257976,-500.0,0.00030136,8]
[401837398,1768384257985,-310.81767158,0.00030136,8]
[401837399,1768384257994,-500.0,0.00030136,30]
[401837400,1768384258003,-500.0,0.00030136,30]
[401837401,1768384258012,-500.0,0.00030136,30]
[401837402,1768384258022,-500.0,0.00030136,30]
[401837403,1768384258031,-500.0,0.00030136,30]
[401837404,1768384258040,-500.0,0.00030136,30]
[401837405,1768384258049,-475.92512597,0.00030136,30]
[401837406,1768384258060,-500.0,0.00030136,30]
[401837407,1768384258069,-500.0,0.00030136,30]
[401837408,1768384258078,-500.0,0.00030136,30]
[401837409,1768384258086,-500.0,0.00030136,30]
[401837410,1768384258095,-500.0,0.00030136,30]
[401837411,1768384258104,-500.0,0.00030136,30]
[401837412,1768384258114,-500.0,0.00030136,30]
[401837413,1768384258123,-500.0,0.00030136,30]
[401837414,1768384258131,-500.0,0.00030136,30]
[401837415,1768384258141,-500.0,0.00030136,30]
[401837416,1768384258150,-500.0,0.00030136,30]
[401837417,1768384258159,-500.0,0.00030136,30]
[401837418,1768384258168,-500.0,0.00030136,30]
[401837419,1768384258177,-500.0,0.00030136,30]
[401837420,1768384258186,-500.0,0.00030136,30]
[401837421,1768384258195,-500.0,0.00030136,30]
[401837422,1768384258203,-500.0,0.00030136,30]
[401837423,1768384258212,-500.0,0.00030136,30]
[401837424,1768384258221,-500.0,0.00030136,30]
[401837425,1768384258230,-500.0,0.00030136,30]
[401837426,1768384258239,-619.25909639,0.00030136,30]
[401837427,1768384258248,-224.80837806,0.00030136,7]
[401837428,1768384258257,-758.06,0.00030136,30]
[401837429,1768384258268,-758.06,0.00030136,30]
[401837430,1768384258278,-758.06,0.00030136,30]
[401837431,1768384258288,-758.06,0.00030136,30]
[401837432,1768384258297,-1000.0,0.00030136,2]
[401837433,1768384258308,-758.06,0.00030136,30]
[401837434,1768384258317,-1000.0,0.00030136,2]
[401837435,1768384258327,-758.06,0.00030136,30]
[401837436,1768384258337,-1000.0,0.00030136,2]
[401837437,1768384258347,-758.06,0.00030136,30]
[401837438,1768384258356,-1000.0,0.00030136,2]
[401837439,1768384258365,-1000.0,0.00030136,2]
[401837440,1768384258374,-758.06,0.00030136,30]
[401837441,1768384258383,-1000.0,0.00030136,2]
[401837442,1768384258392,-758.06,0.00030136,30]
[401837443,1768384258401,-1000.0,0.00030136,2]
[401837444,1768384258410,-758.06,0.00030136,30]
[401837445,1768384258419,-1000.0,0.00030136,2]
[401837446,1768384258429,-1000.0,0.00030136,2]
[401837447,1768384258438,-758.06,0.00030136,30]
[401837448,1768384258447,-838.04,0.00030136,14]
[401837449,1768384258456,-1000.0,0.00030136,2]
[401837450,1768384258466,-758.06,0.00030136,30]
[401837451,1768384258477,-838.04,0.00030136,14]
[401837452,1768384258486,-1000.0,0.00030136,2]
[401837453,1768384258497,-758.06,0.00030136,30]
[401837454,1768384258506,-838.04,0.00030136,14]
[401837455,1768384258517,-1000.0,0.00030136,2]
[401837456,1768384258528,-758.06,0.00030136,30]
[401837457,1768384258539,-838.04,0.00030136,14]
[401837458,1768384258629,-1000.0,0.00030136,2]
[401837459,1768384258638,-758.06,0.00030136,30]
[401837460,1768384258648,-838.04,0.00030136,14]
[401837461,1768384258658,-1000.0,0.00030136,2]
[401837462,1768384258667,-758.06,0.00030136,30]
[401837463,1768384258677,-838.04,0.00030136,14]
[401837464,1768384258687,-1000.0,0.00030136,2]
[401837465,1768384258698,-758.06,0.00030136,30]
[401837466,1768384258708,-838.04,0.00030136,14]
[401837467,1768384258721,-1000.0,0.00030136,2]
[401837468,1768384258730,-758.06,0.00030136,30]
[401837469,1768384258740,-1000.0,0.00030136,2]
[401837470,1768384258749,-838.04,0.00030136,14]
[401837471,1768384258760,-758.06,0.00030136,30]
[401837472,1768384258770,-601.50689548,0.00030136,2]
[401837473,1768384258780,-758.06,0.00030136,30]
[401837474,1768384258790,-758.06,0.00030136,30]
[401837475,1768384258799,-758.06,0.00030136,30]
[401837476,1768384258809,-758.06,0.00030136,30]